fUSD/lending_fUSD_20240813
["ID","MTS","AMOUNT","RATE_DAILY","PERIOD"]
[334732944,1723518646468,-206.57242025,0.00011896,2]
[334733360,1723518650589,-671.50000001,0.00011324,2]
[334734546,1723518863465,164.46,9.499e-05,2]
[334734670,1723519732506,776.0,0.00027,120]
[334735353,1723519847197,-156.23,9.694e-05,2]
[334735355,1723519847208,-550.0,0.0001,2]
[334735357,1723519847218,-267.21,0.00010891,2]
[334735359,1723519847228,-26.56,0.00010896,2]
[334736128,1723520075009,190.02,8.219e-05,2]
[334736157,1723520269078,23900.0,9.621e-05,2]
[334736160,1723520297377,183.98,9.62e-05,2]
[334736161,1723520318141,172.61,9.625e-05,2]
[334736163,1723520364399,10986.6,9.618e-05,2]
[334736164,1723520377806,200.0,9.625e-05,2]
[334736166,1723520414336,524.93,9.613e-05,2]
[334736167,1723520441122,1206.76,9.606e-05,2]
[334736168,1723520450427,308.19,9.61e-05,2]
[334736169,1723520451742,500.0,9.61e-05,2]
[334736170,1723520476639,250.0,9.6e-05,2]
[334736174,1723520537979,873.46,9.604e-05,2]
[334736175,1723520540768,1249.29,9.617e-05,2]
[334736179,1723520623654,2105.0,0.00027,120]
[334736181,1723520649637,1000.0,9.609e-05,2]
[334736182,1723520669248,180.51,8.219e-05,2]
[334736187,1723520699893,2369.86,9.63e-05,2]
[334736189,1723520706878,9243.97,9.63e-05,2]
[334736216,1723520789351,206.72,9.637e-05,2]
[334736217,1723520792421,3940.15,9.637e-05,2]
[334736228,1723520889807,262.46,9.628e-05,2]
[334736259,1723520969787,250.0,9.619e-05,2]
[334736285,1723521032202,-300.0,9.684e-05,2]
[334736286,1723521032212,-18591.778522,9.685e-05,2]
[334736287,1723521032222,-150.0,9.694e-05,2]
[334736288,1723521032233,-193.63,9.705e-05,2]
[334736289,1723521032242,-8728.99,9.708e-05,2]
[334736290,1723521032251,-43911.56985219,9.708e-05,2]
[334736291,1723521032261,-150.0,9.726e-05,2]
[334736292,1723521032273,-661.37,9.752e-05,2]
[334736293,1723521032283,-1356.6,9.95e-05,2]
[334736294,1723521032292,-1330.92,0.0001,2]
[334736295,1723521032302,-150.99,0.0001,2]
[334736296,1723521032314,-299.99,0.0001,2]
[334736297,1723521032324,-499.99,0.00010098,2]
[334736298,1723521032334,-9999.99,0.00010098,2]
[334736299,1723521032344,-150.99,0.00010098,2]
[334736300,1723521032353,-171.91,0.00010126,2]
[334736301,1723521032363,-474.54,0.00010319,2]
[334736302,1723521032374,-474.54,0.00010322,2]
[334736303,1723521032383,-474.54,0.00010324,2]
[334736304,1723521032392,-474.54,0.00010327,2]
[334736305,1723521032402,-474.54,0.0001033,2]
[334736306,1723521032411,-474.54,0.00010333,2]
[334736307,1723521032421,-474.54,0.00010335,2]
[334736308,1723521032430,-474.54,0.00010338,2]
[334736309,1723521032440,-474.54,0.00010341,2]
[334736310,1723521032451,-474.54,0.00010343,2]
[334736311,1723521032460,-474.54,0.00010346,2]
[334736312,1723521032470,-474.54,0.00010349,2]
[334736313,1723521032479,-474.54,0.00010352,2]
[334736314,1723521032489,-474.54,0.00010354,2]
[334736315,1723521032498,-474.54,0.00010357,2]
[334736316,1723521032508,-474.54,0.0001036,2]
[334736317,1723521032517,-1453.545,0.0001036,2]
[334736319,1723521032527,-474.54,0.00010362,2]
[334736321,1723521032537,-474.54,0.00010365,2]
[334736322,1723521032547,-474.54,0.00010368,2]
[334736324,1723521032558,-474.54,0.00010371,2]
[334736326,1723521032568,-180.51,0.00010456,2]
[334736328,1723521032578,-420.0,0.00010652,2]
[334736330,1723521032590,-255.0,0.00010663,2]
[334736332,1723521032599,-196.0689,0.00010687,2]
[334736334,1723521032610,-150.0,0.00010704,2]
[334736336,1723521032619,-151.126,0.00010787,2]
[334736338,1723521032630,-150.0,0.00010804,2]
[334736340,1723521032641,-1000.0,0.0001081,2]
[334736342,1723521032651,-206.72,0.00010842,2]
[334736344,1723521032660,-150.5,0.00010902,2]
[334736346,1723521032670,-558.15,0.00010902,2]
[334736348,1723521032679,-193.28,0.00010918,2]
[334736350,1723521032689,-250.0,0.00010959,2]
[334736351,1723521032700,-150.0,0.00010959,2]
[334736352,1723521032710,-250.0,0.00011,2]
[334736353,1723521032720,-2500.0,0.00011005,2]
[334736354,1723521032730,-151.0,0.00011005,2]
[334736355,1723521032740,-151.0,0.00011005,2]
[334736356,1723521032750,-151.0,0.00011005,2]
[334736357,1723521032760,-15826.13729726,0.00011005,2]
[334736358,1723521032769,-151.0,0.00011005,2]
[334736359,1723521032779,-204.475812,0.00011005,2]
[334736360,1723521032790,-151.0,0.00011005,2]
[334736361,1723521032801,-2500.0,0.00011086,2]
[334736362,1723521032811,-151.559533,0.00011095,2]
[334736363,1723521032822,-1275.75177255,0.00011105,2]
[334736364,1723521032833,-1973.66818837,0.00011105,2]
[334736365,1723521032842,-2841.34337643,0.00011105,2]
[334736366,1723521032853,-9272.07071128,0.00011105,2]
[334736367,1723521032864,-3875.75601636,0.00011105,2]
[334736368,1723521032875,-164.39195275,0.00011105,2]
[334736369,1723521033131,-5408.22812288,0.00011105,2]
[334736370,1723521033142,-155.17356104,0.00011105,2]
[334736371,1723521033152,-155.21822088,0.00011105,2]
[334736372,1723521033163,-2111.63219542,0.00011105,2]
[334736373,1723521033173,-400.0,0.00011105,2]
[334736374,1723521033183,-687.08646626,0.00011105,2]
[334736375,1723521033193,-2386.36839346,0.00011105,2]
[334736376,1723521033202,-720.05251311,0.00011105,2]
[334736377,1723521033211,-723.4767735,0.00011105,2]
[334736378,1723521033221,-1500.0,0.00011105,2]
[334736379,1723521033231,-15484.26437761,0.00011105,2]
[334736380,1723521033241,-1739.7277323,0.00011105,2]
[334736381,1723521033251,-3937.52075365,0.00011105,2]
[334736382,1723521033261,-10534.95166335,0.00011105,2]
[334736383,1723521033271,-653.7077551,0.00011105,2]
[334736384,1723521033282,-192.24172752,0.00011105,2]
[334736385,1723521033291,-298.67239716,0.00011105,2]
[334736386,1723521033302,-1298.34223089,0.00011105,2]
[334736387,1723521033312,-921.63590723,0.00011105,2]
[334736388,1723521033322,-151.0,0.00011105,2]
[334736389,1723521033332,-151.0,0.00011105,2]
[334736390,1723521033341,-151.0,0.00011105,2]
[334736391,1723521033351,-151.0,0.00011105,2]
[334736392,1723521033360,-151.0,0.00011105,2]
[334736393,1723521033370,-151.0,0.00011105,2]
[334736394,1723521033379,-151.0,0.00011105,2]
[334736395,1723521033389,-176.414664,0.00011105,2]
[334736396,1723521033399,-226.769691,0.00011105,2]
[334736397,1723521033408,-151.0,0.00011105,2]
[334736398,1723521033417,-151.0,0.00011105,2]
[334736399,1723521033427,-151.0,0.00011105,2]
[334736400,1723521033436,-151.0,0.00011105,2]
[334736401,1723521033446,-221.649431,0.00011105,2]
[334736402,1723521033455,-528.96350263,0.00011105,2]
[334736403,1723521033465,-155.0,0.00011105,2]
[334736404,1723521033475,-600.79792946,0.00011105,2]
[334736405,1723521033485,-628.70277812,0.00011105,2]
[334736406,1723521033494,-165.52184477,0.00011105,2]
[334736407,1723521033503,-155.0,0.00011105,2]
[334736408,1723521033513,-236.36319912,0.00011105,2]
[334736409,1723521033522,-211.07994478,0.00011105,2]
[334736410,1723521033532,-319.38158331,0.00011105,2]
[334736411,1723521033542,-3404.69572783,0.00011105,2]
[334736412,1723521033551,-401.43055068,0.00011105,2]
[334736413,1723521033563,-313.75141166,0.00011105,2]
[334736414,1723521033572,-155.0,0.00011105,2]
[334736415,1723521033582,-367.83900343,0.00011105,2]
[334736416,1723521033592,-2836.32398591,0.00011105,2]
[334736417,1723521033602,-454.61712704,0.00011105,2]
[334736418,1723521033612,-3121.28195655,0.00011105,2]
[334736419,1723521033622,-164.41632778,0.00011105,2]
[334736420,1723521033633,-155.0,0.00011105,2]
[334736421,1723521033643,-1349.5112029,0.00011105,2]
[334736422,1723521033653,-151.0,0.00011105,2]
[334736423,1723521033663,-151.0,0.00011105,2]
[334736424,1723521033673,-151.0,0.00011105,2]
[334736425,1723521033683,-270.60181535,0.00011105,2]
[334736426,1723521033692,-167.57082198,0.00011105,2]
[334736427,1723521033703,-204.475812,0.00011105,2]
[334736428,1723521033713,-204.475812,0.00011105,2]
[334736429,1723521033723,-204.475812,0.00011105,2]
[334736430,1723521033733,-520.17986791,0.00011105,2]
[334736431,1723521033742,-162.250172,0.00011105,2]
[334736432,1723521033752,-3082.46394052,0.00011105,2]
[334736433,1723521033762,-595.1329658,0.00011105,2]
[334736434,1723521033771,-159.62357463,0.00011105,2]
[334736435,1723521033781,-155.0,0.00011105,2]
[334736436,1723521033791,-203.42899612,0.00011105,2]
[334736437,1723521033801,-155.0,0.00011105,2]
[334736438,1723521033811,-155.45612317,0.00011105,2]
[334736439,1723521033821,-3032.61487239,0.00011105,2]
[334736440,1723521033832,-265.45661365,0.00011105,2]
[334736441,1723521033842,-359.44687371,0.00011105,2]
[334736442,1723521033853,-476.98360421,0.00011105,2]
[334736443,1723521033865,-157.71824926,0.00011105,2]
[334736444,1723521033875,-151.0,0.00011105,2]
[334736445,1723521033885,-151.0,0.00011105,2]
[334736446,1723521033894,-151.0,0.00011105,2]
[334736447,1723521033904,-388.08478933,0.00011157,2]
[334736448,1723521033914,-1634.56112514,0.0001116,2]
[334736449,1723521033924,-155.0,0.00011161,2]
[334736450,1723521033934,-364.2209304,0.00011161,2]
[334736451,1723521033944,-155.0,0.00011161,2]
[334736452,1723521033954,-364.2209304,0.00011161,2]
[334736453,1723521033964,-330.22671498,0.00011161,2]
[334736454,1723521033973,-297.51588055,0.00011161,2]
[334736455,1723521033982,-35730.46351762,0.00011186,2]
[334736456,1723521033992,-25323.97867065,0.00011186,2]
[334736457,1723521034001,-419.14897991,0.00011186,2]
[334736458,1723521034011,-2342.04182094,0.00011186,2]
[334736459,1723521034020,-380.35876131,0.00011186,2]
[334736460,1723521034030,-155.0,0.00011186,2]
[334736461,1723521034041,-218.92791442,0.00011186,2]
[334736462,1723521034051,-151.0,0.00011186,2]
[334736463,1723521034060,-237.650719,0.00011186,2]
[334736464,1723521034070,-155.150602,0.00011186,2]
[334736465,1723521034079,-151.0,0.00011186,2]
[334736466,1723521034089,-151.0,0.00011186,2]
[334736467,1723521034099,-151.0,0.00011186,2]
[334736468,1723521034108,-151.0,0.00011186,2]
[334736469,1723521034117,-151.0,0.00011186,2]
[334736470,1723521034126,-151.0,0.00011186,2]
[334736471,1723521034135,-204.475812,0.00011186,2]
[334736472,1723521034145,-204.475812,0.00011186,2]
[334736473,1723521034154,-150.0,0.00011204,2]
[334736474,1723521034164,-155.0,0.00011206,2]
[334736475,1723521034174,-206.78622014,0.00011206,2]
[334736476,1723521034183,-206.78622014,0.00011206,2]
[334736477,1723521034193,-197.1552014,0.00011206,2]
[334736478,1723521034202,-420.36124782,0.00011209,2]
[334736479,1723521034212,-2502.77061017,0.00011321,2]
[334736480,1723521034221,-1139.21329126,0.00011322,2]
[334736481,1723521034231,-962.52865844,0.00011322,2]
[334736482,1723521034240,-205.95660742,0.00011324,2]
[334736483,1723521034250,-205.95660742,0.00011324,2]
[334736484,1723521034259,-388.08478933,0.0001134,2]
[334736485,1723521034269,-155.0,0.00011384,2]
[334736486,1723521034278,-420.36124782,0.00011494,2]
[334736487,1723521034287,-1009.0,0.000115,2]
[334736488,1723521034297,-151.0,0.00011525,2]
[334736489,1723521034306,-204.475812,0.00011525,2]
[334736490,1723521034318,-155.25559718,0.00011525,2]
[334736491,1723521034327,-432.5166998,0.00011525,2]
[334736492,1723521034336,-162.83363027,0.000116,2]
[334736493,1723521034345,-1004.0,0.000116,2]
[334736494,1723521034355,-587.0,0.00011718,2]
[334736495,1723521034364,-530.62,0.00011724,2]
[334736496,1723521034373,-426.37,0.00011724,2]
[334736497,1723521034383,-150.0,0.00011724,2]
[334736498,1723521034392,-426.37,0.00011724,2]
[334736499,1723521034401,-150.0,0.00011724,2]
[334736500,1723521034410,-426.37,0.00011724,2]
[334736501,1723521034420,-150.0,0.00011724,2]
[334736502,1723521034430,-426.37,0.00011724,2]
[334736503,1723521034439,-151.0,0.00011724,2]
[334736504,1723521034449,-433.0,0.0001173,2]
[334736505,1723521034459,-1000.0,0.00011777,2]
[334736506,1723521034470,-1000.0,0.00011777,2]
[334736507,1723521034480,-1000.0,0.00011777,2]
[334736508,1723521034489,-1000.0,0.00011777,2]
[334736509,1723521034499,-1000.0,0.00011777,2]
[334736510,1723521034509,-1000.0,0.00011777,2]
[334736511,1723521034518,-1000.0,0.00011777,2]
[334736512,1723521034527,-1000.0,0.00011777,2]
[334736513,1723521034537,-1000.0,0.00011777,2]
[334736514,1723521034547,-1000.0,0.00011777,2]
[334736515,1723521034556,-1000.0,0.00011777,2]
[334736516,1723521034568,-1000.0,0.00011777,2]
[334736517,1723521034578,-1000.0,0.00011777,2]
[334736518,1723521034588,-1000.0,0.00011777,2]
[334736519,1723521034597,-1000.0,0.00011777,2]
[334736520,1723521034606,-1000.0,0.00011777,2]
[334736521,1723521034615,-1000.0,0.00011777,2]
[334736522,1723521034625,-1000.0,0.00011777,2]
[334736523,1723521034634,-1000.0,0.00011777,2]
[334736524,1723521034643,-1000.0,0.00011777,2]
[334736525,1723521034653,-1000.0,0.00011777,2]
[334736526,1723521034663,-1000.0,0.00011777,2]
[334736527,1723521034672,-1000.0,0.00011777,2]
[334736528,1723521034682,-1000.0,0.00011777,2]
[334736529,1723521034691,-1000.0,0.00011777,2]
[334736530,1723521034701,-1000.0,0.00011777,2]
[334736531,1723521034711,-1000.0,0.00011777,2]
[334736532,1723521034722,-1000.0,0.00011777,2]
[334736533,1723521034733,-1000.0,0.00011777,2]
[334736534,1723521034743,-1000.0,0.00011777,2]
[334736535,1723521034753,-1000.0,0.00011777,2]
[334736536,1723521034762,-1000.0,0.00011777,2]
[334736537,1723521034772,-1000.0,0.00011777,2]
[334736538,1723521034782,-1000.0,0.00011777,2]
[334736539,1723521034792,-1000.0,0.00011777,2]
[334736540,1723521034802,-1000.0,0.00011777,2]
[334736541,1723521034814,-1000.0,0.00011777,2]
[334736542,1723521034824,-1000.0,0.00011777,2]
[334736543,1723521034833,-1000.0,0.00011777,2]
[334736544,1723521034842,-1000.0,0.00011777,2]
[334736545,1723521034855,-1000.0,0.00011777,2]
[334736546,1723521034867,-1000.0,0.00011777,2]
[334736547,1723521034877,-1000.0,0.00011777,2]
[334736548,1723521034888,-1000.0,0.00011777,2]
[334736549,1723521034898,-1000.0,0.00011777,2]
[334736550,1723521034908,-1000.0,0.00011777,2]
[334736551,1723521034917,-1000.0,0.00011777,2]
[334736552,1723521034927,-1000.0,0.00011777,2]
[334736553,1723521034939,-1000.0,0.00011777,2]
[334736554,1723521034948,-1000.0,0.00011777,2]
[334736555,1723521034958,-1000.0,0.00011777,2]
[334736556,1723521034967,-1000.0,0.00011777,2]
[334736557,1723521034977,-1000.0,0.00011777,2]
[334736558,1723521034987,-1000.0,0.00011777,2]
[334736559,1723521034996,-1000.0,0.00011777,2]
[334736560,1723521035006,-1000.0,0.00011777,2]
[334736561,1723521035015,-1000.0,0.00011777,2]
[334736562,1723521035025,-1000.0,0.00011777,2]
[334736563,1723521035035,-1000.0,0.00011777,2]
[334736564,1723521035045,-1000.0,0.00011777,2]
[334736565,1723521035056,-1000.0,0.00011777,2]
[334736566,1723521035069,-1000.0,0.00011777,2]
[334736567,1723521035078,-1000.0,0.00011777,2]
[334736568,1723521035088,-1000.0,0.00011777,2]
[334736569,1723521035098,-1000.0,0.00011777,2]
[334736570,1723521035107,-1000.0,0.00011777,2]
[334736571,1723521035118,-1000.0,0.00011777,2]
[334736572,1723521035128,-1000.0,0.00011777,2]
[334736573,1723521035138,-1000.0,0.00011777,2]
[334736574,1723521035148,-1000.0,0.00011777,2]
[334736575,1723521035159,-1000.0,0.00011777,2]
[334736576,1723521035169,-1000.0,0.00011777,2]
[334736577,1723521035179,-1000.0,0.00011777,2]
[334736578,1723521035189,-1000.0,0.00011777,2]
[334736579,1723521035199,-1000.0,0.00011777,2]
[334736580,1723521035209,-1000.0,0.00011777,2]
[334736581,1723521035220,-1000.0,0.00011777,2]
[334736582,1723521035231,-1000.0,0.00011777,2]
[334736583,1723521035241,-151.0,0.00011777,2]
[334736584,1723521035252,-151.0,0.00011777,2]
[334736585,1723521035262,-151.0,0.00011777,2]
[334736586,1723521035273,-151.0,0.00011777,2]
[334736587,1723521035283,-151.0,0.00011777,2]
[334736588,1723521035294,-151.0,0.00011777,2]
[334736589,1723521035304,-151.0,0.00011777,2]
[334736590,1723521035317,-151.0,0.00011777,2]
[334736591,1723521035326,-204.475812,0.00011777,2]
[334736592,1723521035336,-204.475812,0.00011777,2]
[334736593,1723521035345,-204.475812,0.00011777,2]
[334736594,1723521035354,-204.475812,0.00011777,2]
[334736595,1723521035363,-204.475815,0.00011777,2]
[334736596,1723521035373,-150.0,0.00011777,2]
[334736597,1723521035384,-150.0,0.00011777,2]
[334736598,1723521035394,-299.86,0.000118,2]
[334736599,1723521035403,-1500.0,0.000118,4]
[334736600,1723521035412,-1074.78314637,0.0001185,2]
[334736601,1723521035422,-2821.74479,0.00011896,2]
[334736602,1723521035432,-516.97128114,0.00011899,2]
[334736603,1723521035441,-500.0,0.00011899,2]
[334736604,1723521035450,-329.44227003,0.00011899,2]
[334736605,1723521035459,-309.30812404,0.00011899,2]
[334736606,1723521035468,-476.02223889,0.00011899,2]
[334736607,1723521035478,-500.0,0.00011899,2]
[334736608,1723521035487,-500.0,0.00011899,2]
[334736609,1723521035498,-500.0,0.00011899,2]
[334736610,1723521035507,-500.0,0.00011899,2]
[334736611,1723521035516,-536.2006158,0.00011899,2]
[334736612,1723521035525,-500.0,0.00011899,2]
[334736613,1723521035535,-500.0,0.00011899,2]
[334736614,1723521035544,-500.0,0.00011899,2]
[334736615,1723521035554,-3000.0,0.000119,4]
[334736616,1723521035566,-749.37644773,0.00011954,2]
[334736617,1723521035575,-211.75773776,0.00011959,2]
[334736618,1723521035585,-151.0,0.00011959,2]
[334736619,1723521035594,-600.0,0.00012,2]
[334736620,1723521035604,-1000.0,0.00012011,2]
[334736621,1723521035614,-172.61,0.00012032,2]
[334736622,1723521035624,-206.72,0.00012046,2]
[334736623,1723521035634,-976.96,0.00012148,2]
[334736624,1723521035643,-3301.9309,0.00012197,2]
[334736625,1723521035653,-1000.0,0.00012197,2]
[334736626,1723521035662,-193.28,0.00012283,2]
[334736627,1723521035672,-151.54817037,0.00012295,2]
[334736628,1723521035682,-150.0,0.00012321,2]
[334736629,1723521035692,-150.0,0.00012333,2]
[334736630,1723521035701,-302.57,0.00012336,2]
[334736631,1723521035711,-1500.0,0.00012339,2]
[334736632,1723521035720,-150.0,0.00012357,2]
[334736633,1723521035729,-5000.0,0.0001236,2]
[334736634,1723521035739,-470.4313,0.0001236,2]
[334736635,1723521035748,-151.25895519,0.0001236,2]
[334736636,1723521035757,-166.79748094,0.0001236,2]
[334736637,1723521035769,-1583.79426262,0.0001236,2]
[334736638,1723521035778,-180.03994109,0.0001236,2]
[334736639,1723521035788,-2624.79344181,0.0001236,2]
[334736640,1723521035797,-150.56124057,0.00012376,2]
[334736641,1723521035806,-892.62032859,0.00012391,2]
[334736642,1723521035820,-155.0,0.00012391,2]
[334736643,1723521035830,-151.0,0.00012392,2]
[334736644,1723521035840,-155.12184863,0.00012397,2]
[334736645,1723521035850,-344.45752764,0.00012397,2]
[334736646,1723521035863,-2582.28026764,0.000124,2]
[334736647,1723521035951,-500.0,0.00011899,2]
[334736648,1723521035961,-383.41898325,0.00011899,2]
[334736649,1723521035973,-116.58101675,0.00011899,2]
[334736650,1723521035982,-500.0,0.00011899,2]
[334736651,1723521035992,-500.0,0.00011899,2]
[334736652,1723521036001,-500.0,0.00011899,2]
[334736653,1723521036011,-500.0,0.00011899,2]
[334736654,1723521036020,-1532.58918575,0.000124,2]
[334736663,1723521037552,-155.0,0.00011105,2]
[334736664,1723521037563,-243.27449517,0.00011206,2]
[334736665,1723521037572,-500.0,0.00011899,2]
[334736666,1723521037581,-356.20858265,0.00011899,2]
[334736667,1723521037883,-143.79141735,0.00011899,2]
[334736668,1723521037893,-500.0,0.00011899,2]
[334736669,1723521037903,-500.0,0.00011899,2]
[334736670,1723521037913,-500.0,0.00011899,2]
[334736671,1723521037923,-500.0,0.00011899,2]
[334736672,1723521037932,-649.92257342,0.00012391,2]
[334736673,1723521037943,-344.45752764,0.00012397,2]
[334736674,1723521037954,-1779.76605061,0.000124,2]
[334736675,1723521037964,-1000.0,0.000124,2]
[334736676,1723521037973,-150.0,0.00012403,2]
[334736678,1723521037983,-1500.0,0.0001241,2]
[334736680,1723521037993,-150.0,0.00012429,2]
[334736681,1723521038002,-152.41,0.0001245,2]
[334736683,1723521038012,-152.41,0.0001245,2]
[334736685,1723521038021,-784.14392931,0.00012457,2]
[334736687,1723521038031,-194.33088415,0.00012459,2]
[334736689,1723521038040,-43172.52546084,0.0001246,2]
[334736705,1723521038150,-1379.86572107,0.0001246,2]
[334736707,1723521038161,-8559.88314644,0.0001246,2]
[334736709,1723521038171,-4096.20780841,0.0001246,2]
[334736846,1723521039526,-402.84619583,0.00011153,2]
[334736848,1723521039536,-268.09460819,0.0001246,2]
[334736860,1723521039704,-151.0,0.00011105,2]
[334736862,1723521039714,-181.65481279,0.0001246,2]
[334736877,1723521039883,-371.91458978,0.00010989,2]
[334736878,1723521039893,-151.0,0.00011105,2]
[334736879,1723521039902,-5.80845071,0.0001246,2]
[334736880,1723521039914,-301.02433591,0.0001246,2]
[334737012,1723521043713,-151.0,0.00011105,2]
[334737014,1723521043723,-151.0,0.00011105,2]
[334737016,1723521043733,-151.0,0.00011186,2]
[334737018,1723521043742,-151.0,0.00011186,2]
[334737020,1723521043752,-371.91458978,0.00011481,2]
[334737022,1723521043761,-402.84619583,0.00011485,2]
[334737024,1723521043770,-151.0,0.00011724,2]
[334737026,1723521043779,-8124.54333379,0.0001246,2]
[334737054,1723521044045,-151.0,0.00011777,2]
[334737056,1723521044055,-22296.5460616,0.0001246,2]
[334737244,1723521045588,-151.0,0.00011777,2]
[334737246,1723521045598,-198.55239838,0.00011777,2]
[334737271,1723521045837,-78.25409762,0.00011777,2]
[334737273,1723521045847,-257.72154238,0.0001246,2]
[334737764,1723521095135,7273.9068,9.584e-05,2]
[334737771,1723521177467,1777.80539483,9.584e-05,2]
[334737772,1723521225523,250.05,9.411e-05,2]
[334737773,1723521698577,237.54,8.371e-05,2]
[334737778,1723522101874,-676.76269985,9.685e-05,2]
[334737851,1723522231708,-399.12662878,9.685e-05,2]
[334737852,1723522231720,-1205.83906467,9.685e-05,2]
[334737853,1723522231815,-2300.12908558,9.685e-05,2]
[334737854,1723522231824,-550.0,0.0001,2]
[334737855,1723522231833,-172.61,0.00010125,2]
[334737856,1723522231842,-303.98208233,0.00010146,2]
[334737857,1723522231852,-1343.86023576,0.00010148,2]
[334737858,1723522231863,-684.44976424,0.00010148,2]
[334737859,1723522231872,-300.0,0.00010157,2]
[334737860,1723522231881,-1287.78,0.00010158,2]
[334737861,1723522231891,-500.0,0.00010158,2]
[334737862,1723522231900,-200.0,0.00010169,2]
[334737863,1723522231911,-373.44846637,0.00010169,2]
[334737864,1723522232011,-350.0,0.00010169,2]
[334737865,1723522232024,-1184.78153363,0.00010169,2]
[334737866,1723522232034,-1705.18653241,0.00010185,2]
[334737867,1723522232075,-1797.40548677,0.00010185,2]
[334737868,1723522232086,-334.50747262,0.00010185,2]
[334737871,1723522232106,-522.58091288,0.00010185,2]
[334737874,1723522232125,-335.92939992,0.00010185,2]
[334737876,1723522232136,-348.89010204,0.00010185,2]
[334737879,1723522232148,-1155.54903095,0.00010185,2]
[334737886,1723522237735,-848.64716631,0.00010185,2]
[334737887,1723522237893,-8436.90292325,0.00010185,2]
[334737888,1723522237906,-6075.62391028,0.00010185,2]
[334737889,1723522237946,-2338.77706257,0.00010185,2]
[334737890,1723522237956,-250.0,0.00010194,2]
[334737891,1723522237966,-925.23,0.00010194,2]
[334737892,1723522237975,-150.99,0.00010194,2]
[334737893,1723522237985,-2540.88,0.00010219,2]
[334737894,1723522237995,-648.2,0.00010219,2]
[334737895,1723522238005,-400.0,0.00010269,2]
[334737896,1723522238014,-4540.49,0.00010959,2]
[334737897,1723522238024,-150.0,0.00010959,2]
[334737898,1723522238033,-250.0,0.00010959,2]
[334737899,1723522238043,-958.6640429,0.00011,2]
[334737900,1723522238052,-2000.0,0.00011,2]
[334737901,1723522238062,-259.923,0.00011005,2]
[334737902,1723522238071,-1206.0404,0.00011005,2]
[334737903,1723522238081,-1139.21329126,0.00011105,2]
[334737904,1723522238090,-205.95660742,0.00011105,2]
[334737905,1723522238099,-4794.24611515,0.00011105,2]
[334737906,1723522238109,-15484.26437761,0.00011105,2]
[334737907,1723522238119,-1275.75177255,0.00011105,2]
[334737908,1723522238128,-5404.28015788,0.00011105,2]
[334737909,1723522238137,-2146.14756584,0.00011105,2]
[334737910,1723522238147,-3875.75601636,0.00011105,2]
[334737911,1723522238158,-2033.78198603,0.00011105,2]
[334737912,1723522238167,-2502.77061017,0.00011105,2]
[334737913,1723522238177,-197.1552014,0.00011105,2]
[334737914,1723522238186,-298.67239716,0.00011105,2]
[334737915,1723522238196,-1215.58248915,0.00011105,2]
[334737916,1723522238216,-1866.88145137,0.00011105,2]
[334737917,1723522238226,-313.75141166,0.00011105,2]
[334737918,1723522238238,-264.51117711,0.00011105,2]
[334737919,1723522238247,-155.0,0.00011105,2]
[334737920,1723522238256,-90.51342163,0.00011105,2]
[334737921,1723522238268,-445.34091486,0.00011105,2]
[334737922,1723522238280,-538.92880988,0.00011105,2]
[334737923,1723522238289,-77.14784752,0.00011105,2]
[334737924,1723522238301,-2955.46702487,0.00011105,2]
[334737925,1723522238312,-155.0,0.00011105,2]
[334737926,1723522238322,-179.95246087,0.00011105,2]
[334737927,1723522238335,-240.92593688,0.00011105,2]
[334737928,1723522238344,-297.51588055,0.00011105,2]